Workbook

Sheet Data
A4: From-NODE - To-NODE | B4: Diameter | C4: Druktrap | D4: Fitting / Beschrijving | E4: Bemating | F4: Eenheid | G4: Link n Dir / File | K4: = bekende maat uit tekening
A5: 10-20 | B5: 3" | C5: 150# | D5: Weldneck Flange | E5: 300 | F5: mm | G5: Map1.xlsm
G6: Gewicht | K6: = totaal maat van pijpdeel
A9: 10-20 | B9: 4" | C9: 150# | D9: Weldneck Flange | E9: 76 | F9: mm | G9: =(7.37+1.56)*10 -> 89.3 | H9: N
D11: Elevatie + | E11: 10059
D12: Elevatie + | E12: -9704
D13: Hoogte-Verschil | E13: =SUM(E11:E12) -> 355
E15: 7343
E16: -1790
E17: -1050
E18: -1050
D19: MaatVerschil | E19: =SUM(E15:E18) -> 3453
E21: 557
E22: 4100
E23: -3150
D24: MaatVerschil | E24: =SUM(E21:E23) -> 1507
D26: Elevatie + | E26: 7445
E27: -550
D28: Elevatie + | E28: =SUM(E26:E27) -> 6895
D30: Elevatie + | E30: 12966
E31: -9704
E32: =SUM(E30:E31) -> 3262
D34: Elevatie + | E34: 12966
E35: -6895
E36: =SUM(E34:E35) -> 6071
E38: 7500
E39: -3150
E40: -1507
E41: =SUM(E38:E40) -> 2843
E44: =E41 -> 2843
B45: 3" | C45: 150# | D45: BW Equal Tee | E45: -105 | F45: mm
D46: BW Conc. Reducer | E46: -102 | F46: mm
E47: =SUM(E44:E46) -> 2636
E49: 1257
E50: 243
E51: =SUM(E49:E50) -> 1500
E53: 1650
E54: -525
E55: =SUM(E53:E54) -> 1125
E57: =E55 -> 1125
B58: 3" | C58: 150# | D58: Weldneck Flange | E58: -70 | F58: mm | G58: =(5.27+0.78)*10 -> 60.5 | H58: N
E59: =SUM(E57:E58) -> 1055
E61: 525
B62: 3" | C62: 150# | D62: Weldneck Flange | E62: -70 | F62: mm | G62: =(5.27+0.78)*10 -> 60.5 | H62: N
E63: =SUM(E61:E62) -> 455
E65: 900
B66: 3" | D66: BW Equal Tee | E66: -86
B67: 3" x 2" | D67: BW Conc. Reducer | E67: -89
B68: 2" | C68: 150# | D68: Weldneck Flange | E68: -64 | F68: mm | G68: =(2.8+0.76)*10 -> 35.6 | H68: N
B69: 2" | C69: 150# | D69: Ball valve | E69: -178 | G69: =(14.66*10) -> 146.6 | H69: N
B70: 2" | C70: 150# | D70: Weldneck Flange | E70: -64 | F70: mm | G70: =(5.27+0.78)*10 -> 60.5 | H70: N
B71: 2" | C71: 150# | D71: BW 90° LR Elbow | E71: -76 | F71: mm
E72: =SUM(E65:E71) -> 343
D75: Elevatie + | E75: 8245
D76: Elevatie + | E76: -7445
D77: Hoogte-Verschil | E77: =SUM(E75:E76) -> 800
E79: 150
B80: 2" | C80: 150# | D80: Weldneck Flange | E80: -64 | F80: mm | G80: =(2.8+0.76)*10 -> 35.6 | H80: N
E81: =SUM(E79:E80) -> 86
A83: 900# | B83: 1333 | C83: mm | E83: =E77 -> 800
E84: -86
B85: 2" | C85: 150# | D85: Weldneck Flange | E85: -64 | F85: mm | G85: =(5.27+0.78)*10 -> 60.5 | H85: N
B86: 2" | C86: 150# | D86: Weldneck Flange | E86: -64 | F86: mm | G86: =(5.27+0.78)*10 -> 60.5 | H86: N
B87: 2" | C87: 150# | D87: BW 90° LR Elbow | E87: -76 | F87: mm
E88: =SUM(E83:E87) -> 510
E90: 1507
D91: BW Equal Tee | E91: -105
D92: BW Conc. Reducer | E92: -102
E93: =SUM(E90:E92) -> 1300
E95: 1093
E96: 1500
E97: =SUM(E95:E96) -> 2593
C100: BW 180° SR Return | D100: 3" | E100: 234 | F100: mm

Sheet Appendages-ed
A1: FromNode-ToNode | B1: 10-20 | C1: 1/4" | D1: 1/2" x 3/4" | E1: 150# | F1: Weldneck Flange | G1: BW 45° Elbow | H1: SW 45° Elbow | I1: Pipe Lengte | J1: Control Valve | K1: Strainer | L1: DN10 | M1: DN10 x DN15
A2: Diameter | B2: 20-30 | C2: 1/2" | D2: 1" x 3/4" | E2: 300# | F2: Slip-on Flange | G2: BW 90° LR Elbow | H2: SW 90° LR Elbow | I2: Pipe Lengte IN SW flange | J2: Safety Valve | K2: Check Valve | L2: DN15
A3: Reducers | B3: 30-40 | C3: 3/4" | D3: 1" x 1/2" | E3: 600# | F3: Blind Flange | G3: BW 180° LR Return | H3: SW 180° LR Return | I3: Min Speling | J3: Flowmeter | K3: Gate Valve | L3: DN20
A4: ANSI Druktrappen | B4: 40-50 | C4: 1" | D4: 1 1/4" x 1/2" | E4: 900# | F4: Threaded Flange | G4: BW 90° SR Elbow | H4: SW 90° SR Elbow | I4: Max Speling | J4: Massameter | K4: Globe Valve | L4: DN32
A5: Flange Type | B5: 50-60 | C5: 1 1/2" | D5: 1 1/4" x 3/4" | E5: 1500# | F5: SocketWelded Flange | G5: BW 180° SR Return | H5: SW 180° SR Return | I5: Vrije Ruimte | J5: - | K5: Butterfly Valve | L5: DN40
A6: Fittings BW | B6: 60-70 | C6: 1 3/4" | D6: 1 1/4" x 1" | E6: 2500# | F6: Lapped Flange | G6: BW Equal Tee | H6: SW Equal Tee | I6: Vrije Ruimte tot Vloer | K6: - | L6: DN50
A7: Omschrijving | B7: 70-80 | C7: 2" | D7: 1 1/2" x 1/2" | E7: 3000# | F7: Long Welding Neck Flange | G7: BW Reducing Tee | H7: SW Reducing Tee | I7: Vrije Ruimte tot Obstakel | L7: DN65
A8: Instrumenten | B8: 80-90 | C8: 2 1/2" | D8: 1 1/2" x 3/4" | E8: 6000# | F8: - | G8: BW Cap | H8: SW Cap | I8: Hoogte Support | L8: DN80
A9: Appendages | B9: 90-100 | C9: 3" | D9: 1 1/2" x 1" | E9: 800# | G9: BW Conc. Reducer | H9: SW Conc. Reducer | I9: Elevatie + | L9: DN100
B10: - | C10: 4" | D10: 1 1/2" x 1 1/4" | E10: - | G10: BW Ecc. Reducer | H10: SW Ecc. Reducer | I10: Hoogte-Verschil | L10: DN125
C11: 5" | D11: 2" x 3/4" | G11: BW Lap Joint Stub End | H11: SW Lap Joint Stub End | I11: MaatVerschil | L11: DN150
C12: 6" | D12: 2" x 1" | G12: - | H12: - | I12: - | L12: DN200
C13: 8" | D13: 2" x 1 1/4" | L13: DN250
C14: 10" | D14: 2" x 1 1/2" | L14: DN300
C15: 12" | D15: 2 1/2" x 1" | L15: DN350
C16: 14" | D16: 2 1/2" x 1 1/4" | L16: DN400
C17: 16" | D17: 2 1/2" x 1 1/2"
C18: 20" | D18: 2 1/2" x 2"
C19: - | D19: 3" x 1`1/4"
D20: 3" x 1`1/2"
D21: 3" x 2"
D22: 3" x 2`1/2"
D23: 3 1/2" x 1 1/4"
D24: 3 1/2" x 1 1/2"
D25: 3 1/2" x 2"
D26: 3 1/2" x 2 1/2"
D27: 3 1/2" x 3"
D28: 4" x 1 1/2"
D29: 4" x 2"
D30: 4" x 2 1/2"
D31: 4" x 3"
D32: 4" x 3 1/2"
D33: 5" x 2"
D34: 5" x 2 1/2"
D35: 5" x 3"
D36: 5" x 3 1/2"
D37: 5" x 4"
D38: 6" x 2 1/2"
D39: 6" x 3"
D40: 6" x 3 1/2"
D41: 6" x 4"
D42: 6" x 5"
D43: 8" x 3 1/2"
D44: 8" x 4"
D45: 8" x 5"
D46: 8" x 6"
D47: -
